Cogmind - Beta 12 @@@ ROGUE MODE // 2023.11.10 @ 12:39:28 Player: ZLD1 Result: Destroyed by Y-45 Defender with Beam Rifle Performance ------------- Evolutions (2) 1000 Regions Visited (5) 1000 Robots Destroyed (6) 30 Value Destroyed (152) 152 Prototype IDs (4) 80 Alien Tech Used (0) 0 Bonus (300) 300 TOTAL SCORE: 2562 Bonus ------- Aligned with FarCom 300 Cogmind --------- Core Integrity 0/550 Matter 280/300 Energy 99/100 System Corruption 0% Temperature Cool (9) Movement Core (100) Ox1 Location -8/Materials Parts ------- > --- POWER (1) -------- (None) > --- PROPULSION (3) --- (None) > --- UTILITY (4) ------ Small Storage Unit Modified TNC > --- WEAPON (3) ------- (None) > --- INVENTORY (8) ---- Light Ion Engine Light Ion Engine Signal Interpreter Peak State ------------ > --- POWER ------------ Light Ion Engine > --- PROPULSION ------- Aluminum Leg Aluminum Leg > --- UTILITY ---------- Small Storage Unit Signal Interpreter > --- WEAPON ----------- YOLO Cannon > --- INVENTORY -------- Light Ion Engine Light Ion Engine Hover Unit Signal Interpreter Terrain Scanner Datajack [Rating: 25] Favorites ----------- Power Light Ion Engine Engine Light Ion Engine Propulsion Aluminum Leg Leg Aluminum Leg Hover Unit Hover Unit Flight Unit Improved VTOL Module Utility Signal Interpreter Device Terrain Scanner Storage Small Storage Unit Processor Signal Interpreter Weapon EM Pulse Gun Energy Gun EM Pulse Gun Energy Cannon YOLO Cannon Build | -11 -10 -10 -10 -9 -8 ------- Run | Jun Mat Min Exi Min Mat Slots Evolved 4 | . . . . . 4 Power . | . . . . . . Propulsion 1 | . . . . . 1 Utility 2 | . . . . . 2 Weapon 1 | . . . . . 1 Parts Attached 17 | 6 1 . 6 1 3 Power 1 | 1 . . . . . Engine 1 | 1 . . . . . Core . | . . . . . . Reactor . | . . . . . . Propulsion 5 | 2 . . 1 1 1 Treads . | . . . . . . Leg 3 | 2 . . . 1 . Wheel . | . . . . . . Hover 1 | . . . 1 . . Flight 1 | . . . . . 1 Utility 7 | 1 1 . 3 . 2 Device 2 | . . . 1 . 1 Storage 3 | 1 . . 1 . 1 Processor 2 | . 1 . 1 . . Hackware . | . . . . . . Protection . | . . . . . . Artifact . | . . . . . . Weapon 4 | 2 . . 2 . . Energy Gun 3 | 2 . . 1 . . Energy Cannon 1 | . . . 1 . . Ballistic Gun . | . . . . . . Ballistic Cannon . | . . . . . . Launcher . | . . . . . . Special Weapon . | . . . . . . Impact Weapon . | . . . . . . Slashing Weapon . | . . . . . . Piercing Weapon . | . . . . . . Special Melee Weapon . | . . . . . . Unidentified Prototypes 4 | . . . 3 . 1 Parts Lost 7 | . 1 . . 1 5 Power 1 | . . . . . 1 Propulsion 3 | . . . . 1 2 Utility 1 | . . . . . 1 Weapon 2 | . 1 . . . 1 Highest Loss Streak 5 | . 1 . . 1 5 To Critical Strikes . | . . . . . . Average Slot Usage (%) 78 | . 92 85 83 84 56 Engine 12 | . 14 14 14 14 7 Leg 21 | . 28 28 23 14 13 Hover 3 | . . . 4 13 . Device 1 | . . . . . 5 Storage 8 | . 14 14 8 . 9 Processor 17 | . 11 14 18 28 16 Energy Gun 12 | . 23 14 12 14 5 Naked Turns . | . . . . . . Heaviest Build 12 | 12 12 10 10 5 11 Greatest Support 20 | 20 20 20 20 20 20 Greatest Overweight (x) 1 | . . . . . 1 Average Overweight (x) . | . . . . . . Largest Inventory Capacity 8 | 8 8 8 8 5 8 Average Capacity 7 | 7 8 8 6 5 8 Most Carried 8 | 5 6 6 8 5 4 Average Carried 4 | 1 3 6 5 5 3 Final Capacity 8 | 8 8 8 5 5 8 Final Carried 6 | 1 6 6 5 5 3 Class Distribution -------------------- 100% | Mutant Dominant Class ---------------- Mutant | -10/Materials Mutant | -10/Mines Mutant | -10/Exiles Mutant | -9/Mines Mutant | -8/Materials Resources | -11 -10 -10 -10 -9 -8 ----------- Run | Jun Mat Min Exi Min Mat Matter Collected 301 | 244 21 . . 36 . Remotely . | . . . . . . Salvage Created 185 | . 74 20 . 91 . Parts 12 | . 3 . . 9 . Haulers Intercepted . | . . . . . . Recyclers Shooed 1 | . . . . 1 . Parts Field Recycled . | . . . . . . Retrieved Matter . | . . . . . . Parts Self-Destructed . | . . . . . . Prevented . | . . . . . . Kills | -11 -10 -10 -10 -9 -8 ------- Run | Jun Mat Min Exi Min Mat Combat Hostiles Destroyed 4 | . 1 1 . 2 . Guns 3 | . . 1 . 2 . Classes Destroyed 4 | . 2 1 . 1 . Worker 1 | . . . . 1 . Watcher 1 | . 1 . . . . Swarmer 1 | . . 1 . . . Grunt 3 | . 1 . . 2 . Best Kill Streak 3 | . 1 1 . 3 . Combat Bots Only 2 | . 1 1 . 2 . Max Kills in Single Turn 1 | . 1 1 . 1 . Gunslinging . | . . . . . . Exploded . | . . . . . . Melee . | . . . . . . Uniques/NPCs Destroyed . | . . . . . . Combat | -11 -10 -10 -10 -9 -8 -------- Run | Jun Mat Min Exi Min Mat Damage Taken 1155 | . 96 . . 171 888 Core 656 | . 15 . . 81 560 Absorbed by Shields . | . . . . . . Core Remaining (%) 80 | 100 . . . 61 . Volleys Fired 22 | . 7 2 . 11 2 Largest 2 | . 2 1 . 1 1 Hottest 80 | . 80 40 . 40 40 Shots Fired 29 | . 14 2 . 11 2 Gun 29 | . 14 2 . 11 2 Cannon . | . . . . . . Launcher . | . . . . . . Special . | . . . . . . Kinetic . | . . . . . . Thermal . | . . . . . . Explosive . | . . . . . . Electromagnetic 29 | . 14 2 . 11 2 Robot Hit Streak 5 | . 5 1 . 4 3 Robot Miss Streak 2 | . 2 1 . 2 1 Penetration Max . | . . . . . . Secondary Targets . | . . . . . . Shots Hit Robots 18 | . 9 1 . 7 1 Core Hits 9 | . 3 1 . 5 . Critical Kills . | . . . . . . Critical Parts Destroyed . | . . . . . . Critical Strikes 1 | . 1 . . . . Corrupt 1 | . 1 . . . . Melee Attacks . | . . . . . . Impact . | . . . . . . Slashing . | . . . . . . Piercing . | . . . . . . Sneak Attacks . | . . . . . . Combat Hostiles . | . . . . . . Follow-up Attacks . | . . . . . . Damage Inflicted 334 | . 131 12 . 161 30 Guns 271 | . 131 12 . 106 22 Cannons . | . . . . . . Explosions 30 | . . . . 30 . Melee . | . . . . . . Ramming 33 | . . . . 25 8 Kinetic . | . . . . . . Thermal 30 | . . . . 30 . Explosive . | . . . . . . Electromagnetic 271 | . 131 12 . 106 22 Impact . | . . . . . . Slashing . | . . . . . . Piercing . | . . . . . . Highest Corruption 2 | . . . . 2 . Average Corruption 2 | . . . . 2 . Corruption Purged . | . . . . . . Corruption Blocked . | . . . . . . Effects 1 | . . . . 1 . Matter Fused 1 | . . . . 1 . Overload Shots . | . . . . . . Overflow Damage . | . . . . . . Projectiles . | . . . . . . Explosions . | . . . . . . Melee . | . . . . . . Knockbacks 1 | . . . . . 1 Impact 1 | . . . . . 1 Kinetic . | . . . . . . Secondary . | . . . . . . Self-Inflicted Damage 39 | . . . . 39 . Shots 1 | . . . . 1 . Rammed 3 | . . . . 3 . Targets Rammed 6 | . . . . 3 3 Kicked 3 | . . . . . 3 Crushed . | . . . . . . Highest Temperature 264 | . 171 . . 77 264 Average Temperature 68 | . 74 . . 40 105 Received Heat Transfer 615 | . 72 . . 66 477 Siege Activations . | . . . . . . Robots Corrupted 1 | . 1 . . . . Combat Hostiles 1 | . 1 . . . . Parts Fried 1 | . 1 . . . . Impact Corruptions . | . . . . . . Robots Melted . | . . . . . . Combat Hostiles . | . . . . . . Parts Melted . | . . . . . . Heat Transferred 50 | . . . . 50 . Parts Sabotaged . | . . . . . . Parts Stolen . | . . . . . . Parts Stripped . | . . . . . . Power Chain Reactions 1 | . . . . 1 . Missiles Intercepted . | . . . . . . Alert | -11 -10 -10 -10 -9 -8 ------- Run | Jun Mat Min Exi Min Mat Peak Influence 93 | . 57 52 . 93 38 Initial 35 | . . 22 . . 35 Average 23 | . 26 33 . 18 25 Maximum Alert Level . | . . . . . . Low Security (%) 100 | 100 100 100 . 100 100 Level 1 . | . . . . . . Level 2 . | . . . . . . Level 3 . | . . . . . . Level 4 . | . . . . . . Level 5 . | . . . . . . High Security . | . . . . . . Max Security . | . . . . . . Squads Dispatched 2 | . . . . 1 1 Investigation 2 | . . . . 1 1 Extermination . | . . . . . . Reinforcement . | . . . . . . Assault . | . . . . . . Garrison . | . . . . . . Intercept . | . . . . . . Searches Triggered . | . . . . . . Construction Impeded . | . . . . . . Haulers Reinforced . | . . . . . . Active Scanning Responses . | . . . . . . Cargo Convoy Interrupts . | . . . . . . Stealth | -11 -10 -10 -10 -9 -8 --------- Run | Jun Mat Min Exi Min Mat Distress Signals 1 | . 1 . . . . Communications Jammed . | . . . . . . Distress Signals . | . . . . . . Times Spotted 20 | . 2 2 . 5 11 Peak Tracking Total 10 | . 2 1 . 3 10 Tactical Retreats 3 | . 1 . . 1 1 Traps | -11 -10 -10 -10 -9 -8 ------- Run | Jun Mat Min Exi Min Mat Traps Triggered 1 | . . . . . 1 Indirectly . | . . . . . . Trap Hack Attempts . | . . . . . . Triggered . | . . . . . . Disarmed . | . . . . . . Reprogrammed . | . . . . . . Reused . | . . . . . . Traps Extracted . | . . . . . . Installed . | . . . . . . Triggered . | . . . . . . Machines | -11 -10 -10 -10 -9 -8 ---------- Run | Jun Mat Min Exi Min Mat Machines Disabled 1 | . . . . 1 . Max in Single Turn 1 | . . . . 1 . Machines Repaired . | . . . . . . Machines Sabotaged . | . . . . . . Overloaded Fab Kills . | . . . . . . Hacking | -11 -10 -10 -10 -9 -8 --------- Run | Jun Mat Min Exi Min Mat Machines Accessed 2 | . . . . 1 1 Terminals 2 | . . . . 1 1 Fabricators . | . . . . . . Repair Stations . | . . . . . . Recycling Units . | . . . . . . Scanalyzers . | . . . . . . Garrison Access . | . . . . . . Total Hacks 8 | . . . . 3 5 Successful 6 | . . . . 3 3 Failed 2 | . . . . . 2 Catastrophic . | . . . . . . Database Lockouts . | . . . . . . Manual 1 | . . . 1 . . Terminals 8 | . . . . 3 5 Fabricators . | . . . . . . Repair Stations . | . . . . . . Recycling Units . | . . . . . . Scanalyzers . | . . . . . . Garrison Access . | . . . . . . Terminal Hacks 6 | . . . . 3 3 Record 5 | . . . . 2 3 Zone Layout 1 | . . . . 1 . Fabricator Hacks . | . . . . . . Repair Station Hacks . | . . . . . . Recycling Unit Hacks . | . . . . . . Scanalyzer . | . . . . . . Garrison Access Hacks . | . . . . . . Unauthorized Hacks . | . . . . . . Terminals . | . . . . . . Fabricators . | . . . . . . Repair Stations . | . . . . . . Recycling Units . | . . . . . . Scanalyzers . | . . . . . . Garrison Access . | . . . . . . Data Cores Recovered . | . . . . . . Used . | . . . . . . Hacking Detections 2 | . . . . 1 1 Full Trace Events 1 | . . . . 1 . Feedback Events . | . . . . . . Feedback Blocked . | . . . . . . Robot Schematics Acquired . | . . . . . . Robots Built . | . . . . . . Authchips . | . . . . . . Time . | . . . . . . Total Robot Build Rating . | . . . . . . Part Schematics Acquired . | . . . . . . Parts Built . | . . . . . . Authchips . | . . . . . . Time . | . . . . . . Total Part Build Rating . | . . . . . . Parts Repaired . | . . . . . . Time . | . . . . . . Parts Recycled . | . . . . . . Recycled Matter . | . . . . . . Retrieved Matter . | . . . . . . Retrieved Components . | . . . . . . Parts Scanalyzed . | . . . . . . Part Schematics Acquired . | . . . . . . Parts Damaged . | . . . . . . Bothacking | -11 -10 -10 -10 -9 -8 ------------ Run | Jun Mat Min Exi Min Mat Used RIF Installer . | . . . . . . Robots Hacked . | . . . . . . Non-combat . | . . . . . . Combat . | . . . . . . Robot Hacks Applied . | . . . . . . Relay Couplers Released . | . . . . . . Fabnet Peak Effective % . | . . . . . . Robots Rewired . | . . . . . . Allies Hacked . | . . . . . . Hacks Repelled . | . . . . . . Allies | -11 -10 -10 -10 -9 -8 -------- Run | Jun Mat Min Exi Min Mat Total Allies . | . . . . . . Largest Group . | . . . . . . Highest-Rated Group . | . . . . . . Highest-Rated Ally . | . . . . . . Total Orders . | . . . . . . Ally Attacks . | . . . . . . Total Damage . | . . . . . . Kills . | . . . . . . Allies Corrupted . | . . . . . . Allies Melted . | . . . . . . Intel | -11 -10 -10 -10 -9 -8 ------- Run | Jun Mat Min Exi Min Mat Robot Analysis Total . | . . . . . . Derelict Logs Recovered 1 | . . . . 1 . Drone Launches . | . . . . . . Drone Recoveries . | . . . . . . Exploration | -11 -10 -10 -10 -9 -8 ------------- Run | Jun Mat Min Exi Min Mat Turns Passed 875 | 63 123 115 241 141 192 Spaces Moved 766 | 52 70 93 232 161 158 Core 62 | 16 . . . . 46 Treads . | . . . . . . Legs 447 | 36 70 93 131 5 112 Wheels . | . . . . . . Hover 257 | . . . 101 156 . Flight . | . . . . . . Fastest Speed 50 | 50 120 120 70 70 100 Average Speed 100 | 98 120 120 98 71 114 Slowest Speed 120 | 120 120 120 120 120 120 Overloaded Moves . | . . . . . . Propulsion Burnouts . | . . . . . . Robots Hopped . | . . . . . . Cave-ins Triggered . | . . . . . . Exploration Rate (%) 30 | 3 24 35 61 47 15 Regions Visited 5 Branch Regions 3 Pre-discovered Areas . | . . . . . . Known Exits Taken 4 | . 1 1 1 1 . Unknown Exits Taken 1 | 1 . . . . . Scrap Searched 1 | . . 1 . . . Spaces Dug . | . . . . . . Terrain Destroyed 2 | . . . . 2 . Melee . | . . . . . . Projectile . | . . . . . . AOE 2 | . . . . 2 . Terrain Rammed . | . . . . . . Walls Destroyed . | . . . . . . Machines Disabled . | . . . . . . Actions | -11 -10 -10 -10 -9 -8 --------- Run | Jun Mat Min Exi Min Mat Total 841 | 64 95 94 245 175 168 Wait 12 | . 12 . . . . Move 761 | 51 69 92 231 160 158 Hop . | . . . . . . Pick Up 17 | 7 6 . 3 . 1 Fast Attach 3 | . . . 2 1 . Attach 12 | 6 1 . 2 . 3 Detach 1 | . . . 1 . . Swap 2 | . . . 2 . . Drop 5 | . . . 4 . 1 Fire 22 | . 7 2 . 11 2 Melee . | . . . . . . Ram 3 | . . . . 3 . Kick 3 | . . . . . 3 Crush . | . . . . . . Escape Stasis . | . . . . . . Rewire . | . . . . . . Trap . | . . . . . . Miscellaneous . | . . . . . . Route ------- -11/Junkyard -10/Materials -10/Mines -10/Exiles -9/Mines -8/Materials (discovered 1 exit: *Fac) History --------- Turn | Location | Event 4 | -11/Junkyard | Discovered new exit (range 16) 64 | -11/Junkyard | Entered Materials 167 | -10/Materials | Met 8R-AWN 167 | -10/Materials | Discovered new exit (range 15) 186 | -10/Materials | Identified exit to Mines 187 | -10/Materials | Entered Mines 189 | -10/Mines | Followed 8R-AWN into the Mines 295 | -10/Mines | Discovered new exit (range 5) 299 | -10/Mines | Identified exit to Exiles 302 | -10/Mines | Entered Exiles 313 | -10/Exiles | Build established: Mutant 335 | -10/Exiles | Welcomed by 8R-AWN 355 | -10/Exiles | Met EX-HEX 391 | -10/Exiles | Met EX-BIN 410 | -10/Exiles | Aligned with FarCom system 412 | -10/Exiles | Given EX-Vault access code 440 | -10/Exiles | Opened EX-Vault 448 | -10/Exiles | Found Prototype Energy Cannon 449 | -10/Exiles | Identified YOLO Cannon 453 | -10/Exiles | Found Prototype Device 454 | -10/Exiles | Identified PSU Rigger 466 | -10/Exiles | Found Prototype Processor 466 | -10/Exiles | Identified Modified TNC 490 | -10/Exiles | Warned to stay clear of 0b10 Research branches 508 | -10/Exiles | Met EX-DEC 534 | -10/Exiles | Discovered new exit (range 14) 543 | -10/Exiles | Identified exit to Mines 543 | -10/Exiles | Left Exiles lab with Modified TNC 543 | -10/Exiles | Entered Mines 578 | -9/Mines | Met a Derelict bent on vengeance 638 | -9/Mines | Learned location of 1 exit from Materials 638 | -9/Mines | Discovered new exit (range 9) 647 | -9/Mines | Identified exit to Materials 684 | -9/Mines | Entered Materials 684 | -8/Materials | Evolved 4 slots: Propulsion x1, Utility x2, Weapon x1 685 | -8/Materials | Identified exit to Factory 841 | -8/Materials | Core integrity fell below 50% 862 | -8/Materials | Lost 5 parts (1p2n1u1w) 867 | -8/Materials | Core integrity fell below 20% 876 | -8/Materials | Destroyed by Y-45 Defender with Beam Rifle Last Messages --------------- 00797_ C-30 ARC bursts open, deploying its payload. 00797_ G-50 Soldier unfolds itself. 00797_ G-47 Trooper unfolds itself. 00797_ Material Processor disabled. 00799_ EM Pulse Gun destroyed. 00801_ Terrain Scanner destroyed. 00803_ Kicked G-47 Trooper. 00806_ Kicked G-47 Trooper out of the way. 00806_ G-47 Trooper knocked back. 00827_ Aluminum Leg destroyed. 00831_ Lgt. Ion Engine destroyed. 00831_ Critical hit (Burn: +37). 00834_ Signal Interpreter severed. 00834_ Critical hit (Burn: +37). 00845_ T-07 Excavator is excavating. 00859_ Triggered Alarm Trap. 00859_ An alarm sounds. 00859_ ALERT: Alarm triggered, dispatching investigation squad. 00865_ Slug penetrates Wall. 00874_ Penetrated by Slug. Map ----- +----------------------------------------------------+ | ???????????????####+### #?##+#####?????????????? | | ???????????" # #?# #?????????????? | | ????????????" / ### #?????????????? | | ???????????????# #?????????????? | | ???????????????#+##+######### #?????????????? | | ????????????????????????????# ## #?????????????? | | ????????????????????????????# #????????????????? | | ????????????????????????????# #????????????????? | | ????????????????????????????# #????????????????? | | ????????????????????????????# #????????????????? | | ????????????????????????????#g #????????????????? | | ????????????????????????????# #????????????????? | | ????????????????????????????#g #????????????????? | | ????????????????????????????# #????????????????? | | ????????????????????????????#g #????????????????? | | ?????????????################ #????????????????? | | ?????????????# l g #????????????????? | | ?????????????# gg +????????????????? | | ?????????????# #????????????????? | | ?????????????# Y#########????????????????? | | ?????????????# #???????????????????? | | ?????????????# #???????????????????? | | ?????????????+ #???????????????????? | | ?????????????# h #???????????????????? | | ?????????????# ######### #???????????????????? | | ?????????????#?????????##@ ##???????????????????? | | ????????????????????????# #????????????????????? | | ????????????????????????+ #????????????????????? | | ????????????????????????# < #????????????????????? | | ????????????????????????# #????????????????????? | | ????????????????????????#####????????????????????? | | ?????????????????????????????????????????????????? | | ?????????????????????????????????????????????????? | | ?????????????????????????????????????????????????? | | ?????????????????????????????????????????????????? | | ?????????????????????????????????????????????????? | | ?????????????????????????????????????????????????? | | ?????????????????????????????????????????????????? | | ?????????????????????????????????????????????????? | | ?????????????????????????????????????????????????? | | | | | | | | | | | | | | | | | | | | | +----------------------------------------------------+ Best States ------------- Heat Dissipation 31 Energy Generation 10 Energy Capacity 125 Matter Stores 300 Matter Capacity 300 Sight Range 16 Terrain Scan Range 14 Terrain Scan Density 10 Evasion (%) 55 Item Schematics ----------------- None Robot Schematics ------------------ None Fabricated ------------ Nothing Alien Tech Used ----------------- None Achievements -------------- None Challenges ------------ None Game ------ Seed ImpactWarpAutogun Manual? 0 Play Time 00:11:52 Cumulative 54.3 hours Start 2023.11.10 @ 12:29:44 End 2023.11.10 @ 12:39:28 Sessions 1 Manual Loads 0 Difficulty Rogue Special Mode None Game No. 118 Rogue 118 Adventurer 0 Explorer 0 Win Type - Total 0 Types 0/0/0/0/0/0/0/0/0 Lore% 26 Gallery% 43 Achievement% 31 Wizard Run 0 Options --------- ASCII 0 Keyboard 0 Movement Mouse Keybinds 0 Fullscreen 1 Font 24/Smallcaps Map View 76x50 Tactical HUD 1 Map Filters NONE Filters NONE Steam 1 RUN: 6d61900c-0be5-4328-905f-51a344fc527a